bitfinex/quotes_SOLUSD_20250721
["timestamp","ask_amount","ask_price","bid_price","bid_amount"]
[1753111844144,26.95232073,196.87,196.86,0.03]
[1753111844338,27.63232073,196.87,196.86,0.03]
[1753111844647,38.00841718,196.87,196.86,0.03]
[1753111844962,38.28,196.88,196.86,0.03]
[1753111845262,38.28,196.88,196.87,10.37609645]
[1753111845465,38.28,196.89,196.87,10.37609645]
[1753111845644,0.68,196.88,196.87,10.37609645]
[1753111845962,38.91487226,196.89,196.87,10.37609645]
[1753111846139,0.68,196.88,196.86,0.03]
[1753111846328,38.91487226,196.89,196.87,10.37609645]
[1753111846531,55.06468397,196.89,196.88,10.37609645]
[1753111846735,55.74468397,196.89,196.87,10.37609645]
[1753111847040,1.31490451,196.88,196.86,0.03]
[1753111847349,0.68,196.88,196.87,10.37609645]
[1753111847659,0.63490451,196.88,196.87,10.37609645]
[1753111847835,38.28,196.89,196.87,10.37609645]
[1753111848042,16.78468397,196.9,196.88,10.37609645]
[1753111848260,9.0081,196.92,196.89,10.37609645]
[1753111848445,64.07278397,196.92,196.91,10.37609645]
[1753111848646,64.07278397,196.92,196.86,5.10970682]
[1753111848841,64.07278397,196.92,196.91,10.37609645]
[1753111849154,64.75278397,196.92,196.91,10.37609645]
[1753111849680,69.83098831,196.92,196.9,10.37609645]
[1753111849857,1.31480778,196.91,196.9,10.37609645]
[1753111850158,23.17795399,196.91,196.9,10.37609645]
[1753111850454,23.17795399,196.91,196.88,10.37609645]
[1753111850754,0.68,196.9,196.88,10.37609645]
[1753111850958,38.26,196.89,196.86,0.03]
[1753111851260,0.68,196.9,196.86,0.03]
[1753111851261,16.78468397,196.91,196.86,5.10971379]
[1753111851554,0.68,196.96,196.9,10.37609645]
[1753111851753,12.74926642,197.02,196.86,31.10971379]
[1753111851754,0.63454997,196.99,196.95,10.37609645]
[1753111851965,0.63448555,197.01,197.0,26.0]
[1753111852131,0.06,197.02,197.0,36.37609645]
[1753111852335,0.06,197.02,197.01,10.37609645]
[1753111853740,0.06,197.02,197.01,11.04609645]
[1753111853940,0.06,197.02,197.01,16.12198092]
[1753111854747,0.06,197.05,197.04,26.0]
[1753111855071,0.06,197.05,197.04,46.7521929]
[1753111855254,0.69409932,197.13,197.09,10.37609645]
[1753111855640,0.06,197.13,197.09,10.37609645]
[1753111855841,0.06,197.13,197.09,11.04609645]
[1753111856053,0.06,197.13,197.09,16.11992059]
[1753111856854,0.06,197.13,197.12,10.37609645]
[1753111857155,0.06,197.13,197.12,15.63939999]
[1753111857971,0.06,197.13,197.12,21.38245193]
[1753111858263,0.06,197.13,197.12,15.63939999]
[1753111858765,0.06,197.13,197.12,16.30939999]
[1753111858956,0.06,197.13,197.12,15.63939999]
[1753111860056,0.06,197.13,197.12,16.30939999]
[1753111860360,0.06,197.13,197.06,0.67]
[1753111860361,0.74,197.13,197.06,0.67]
[1753111860575,0.69409932,197.13,197.12,15.63939999]
[1753111860871,0.74,197.13,197.1,15.63939999]
[1753111861067,0.06,197.13,197.12,15.63939999]
[1753111861287,0.06,197.17,197.12,31.96879998]
[1753111861462,0.06,197.17,197.16,15.63939999]
[1753111862152,0.06,197.17,197.02,25.37813419]
[1753111862356,0.06,197.17,197.09,0.69]
[1753111862553,0.06,197.17,197.16,15.63939999]
[1753111863086,0.06,197.17,197.16,0.69]
[1753111863253,0.06,197.17,197.16,16.32939999]
[1753111864258,0.06,197.17,197.16,21.30142271]
[1753111866872,0.2,197.18,197.16,21.30142271]
[1753111867069,0.2,197.19,197.17,42.32939999]
[1753111867270,0.2,197.19,197.18,15.63939999]
[1753111867578,0.2,197.19,197.18,38.85]
[1753111867874,0.2,197.19,197.18,54.48939999]
[1753111868058,0.2,197.19,197.18,59.56090825]
[1753111868654,0.2,197.19,197.18,21.40090825]
[1753111868855,0.2,197.19,197.18,59.56090825]
[1753111869155,0.06,197.22,197.21,26.0]
[1753111869352,0.06,197.22,197.21,41.63939999]
[1753111869756,0.06,197.22,197.21,26.0]
[1753111869962,0.06,197.22,197.21,42.32939999]
[1753111870172,0.06,197.22,197.21,47.40013676]
[1753111870777,0.06,197.22,197.21,31.07073677]
[1753111870980,0.06,197.22,197.19,38.14]
[1753111870981,0.06,197.22,197.2,5.07095578]
[1753111871157,0.06,197.22,197.21,15.63939999]
[1753111872081,0.06,197.22,197.21,16.32939999]
[1753111872278,0.06,197.22,197.21,5.07073677]
[1753111872462,0.06,197.22,197.21,0.69]
[1753111872662,0.06,197.22,197.21,16.32939999]
[1753111873393,0.06,197.22,197.21,80.44939999]
[1753111874487,0.06,197.22,197.21,85.52013676]
[1753111875386,0.06,197.22,197.21,47.40013676]
[1753111875566,0.06,197.22,197.21,85.52013676]
[1753111875765,0.06,197.22,197.21,47.40013676]
[1753111875982,0.06,197.22,197.14,5.07253728]
[1753111875983,0.76,197.22,197.14,5.07253728]
[1753111876187,17.03320994,197.22,197.14,38.1]
[1753111876461,0.7,197.21,197.16,15.63939999]
[1753111876673,0.7,197.2,197.17,15.63939999]
[1753111876868,0.63384209,197.21,197.17,15.63939999]
[1753111876869,0.7,197.19,197.17,15.63939999]
[1753111877073,0.63384209,197.21,197.18,15.63939999]
[1753111877277,0.76,197.22,197.19,15.63939999]
[1753111877477,0.06,197.22,197.2,15.63939999]
[1753111877674,0.06,197.22,197.21,15.63939999]
[1753111878897,1.39380995,197.22,197.19,15.63939999]
[1753111879181,0.7,197.21,197.2,10.36387145]
[1753111879385,17.54468397,197.22,197.14,5.76231904]
[1753111879586,17.54468397,197.22,197.19,10.36387145]
[1753111880104,17.54468397,197.22,197.14,5.76231904]
[1753111880105,12.57185657,197.21,197.16,10.36387145]
[1753111880390,16.78468397,197.16,197.07,38.77]
[1753111880563,16.78468397,197.14,197.06,0.03]
[1753111880765,17.41875113,197.14,197.09,10.36387145]
[1753111880963,16.78468397,197.12,197.06,0.03]
[1753111881183,16.78468397,197.12,197.09,10.36387145]
[1753111881365,16.78468397,197.12,197.1,10.36387145]
[1753111881784,17.48468397,197.12,197.1,10.36387145]
[1753111882373,16.78468397,197.12,197.1,10.36387145]
[1753111882870,0.7,197.15,197.11,10.36387145]
[1753111883065,17.48468397,197.14,197.11,10.36387145]
[1753111883288,16.78468397,197.14,197.11,10.36387145]
[1753111883585,0.7,197.13,197.1,10.36387145]
[1753111883990,0.7,197.13,197.11,10.36387145]
[1753111884309,1.33400284,197.16,197.12,10.36387145]
[1753111884603,17.48468397,197.15,197.08,5.07403323]
[1753111884770,0.7,197.14,197.11,10.36387145]
[1753111885879,0.7,197.14,197.12,10.36387145]
[1753111886890,16.78468397,197.15,197.12,10.36387145]
[1753111887083,16.78468397,197.16,197.14,10.36387145]
[1753111887288,8.15135225,197.19,197.12,0.69]
[1753111887289,0.7,197.2,197.15,10.36387145]
[1753111887593,6.1672,197.21,197.14,26.0]
[1753111887790,0.7,197.19,197.18,10.36387145]
[1753111888093,6.1672,197.21,197.18,10.36387145]
[1753111888284,6.1672,197.21,197.19,10.36387145]
[1753111888592,0.7,197.2,197.18,10.36387145]
[1753111889083,6.1672,197.21,197.19,10.36387145]
[1753111889473,11.938017,197.21,197.19,10.36387145]
[1753111889673,11.938017,197.21,197.18,10.36387145]
[1753111889871,6.8672,197.21,197.19,10.36387145]
[1753111890282,0.7,197.2,197.18,10.36387145]
[1753111890475,0.7,197.2,197.19,10.36387145]
[1753111890685,6.1672,197.21,197.19,10.36387145]
[1753111890890,6.8672,197.21,197.19,10.36387145]
[1753111891197,6.8672,197.21,197.14,31.35434914]
[1753111891198,17.48468397,197.2,197.17,10.36387145]
[1753111891369,0.71,197.19,197.17,10.36387145]
[1753111891567,16.78468397,197.16,197.11,10.36387145]
[1753111891772,0.71,197.15,197.11,10.36387145]
[1753111891979,0.71,197.14,197.11,10.36387145]
[1753111892192,16.78468397,197.16,197.09,0.98244839]
[1753111892386,16.78468397,197.16,197.14,10.36387145]
[1753111892587,1.34393853,197.18,197.15,10.36387145]
[1753111892895,16.78468397,197.19,197.17,10.36387145]
[1753111893069,16.78468397,197.19,197.18,10.36387145]
[1753111893480,16.78468397,197.19,197.17,10.36387145]
[1753111893992,16.78468397,197.19,197.16,10.36387145]
[1753111894189,16.78468397,197.19,197.17,10.36387145]
[1753111894377,17.47849392,197.22,197.14,0.28210171]
[1753111894585,17.47849392,197.22,197.19,10.36387145]
[1753111894890,23.25904088,197.22,197.19,10.36387145]
[1753111895084,0.06,197.22,197.2,10.36387145]
[1753111895286,0.06,197.22,197.21,10.36387145]
[1753111895796,0.06,197.22,197.18,0.7]
[1753111895976,0.06,197.22,197.16,5.07198254]
[1753111896173,1.34384209,197.21,197.17,36.36387145]
[1753111896396,0.71,197.21,197.18,10.36387145]
[1753111897175,0.06,197.22,197.2,10.36387145]
[1753111898677,0.06,197.22,197.21,10.36387145]
[1753111900182,0.06,197.22,197.21,15.43460822]
[1753111900499,0.06,197.22,197.21,16.13460822]
[1753111901378,0.06,197.22,197.21,15.43460822]
[1753111902476,0.77,197.22,197.14,0.7]
[1753111902676,0.77,197.22,197.2,10.36387145]
[1753111902677,0.06,197.22,197.2,10.36387145]
[1753111902995,0.06,197.22,197.21,10.36387145]
[1753111903477,0.06,197.22,197.21,75.06387145]
[1753111903684,0.06,197.22,197.21,75.34569807]
[1753111904079,0.06,197.22,197.21,41.71643484]
[1753111904299,0.06,197.22,197.21,41.43460822]
[1753111905198,0.06,197.22,197.21,42.13460822]
[1753111906099,0.06,197.22,197.21,41.43460822]
[1753111906508,0.06,197.22,197.21,42.13460822]
[1753111907710,0.06,197.22,197.2,0.28186949]
[1753111908003,0.71,197.21,197.17,10.36387145]
[1753111908184,0.71,197.2,197.17,10.36387145]
[1753111908379,0.71,197.2,197.16,26.0]
[1753111908380,0.71,197.2,197.18,10.36387145]
[1753111908604,16.78468397,197.21,197.18,10.36387145]
[1753111908800,17.49468397,197.21,197.18,10.36387145]
[1753111909007,0.06,197.22,197.2,10.36387145]
[1753111909307,0.06,197.22,197.16,28.11589477]
[1753111909308,0.06,197.22,197.21,38.2418516]
[1753111909481,0.06,197.22,197.21,74.60572305]
[1753111909679,0.06,197.26,197.24,26.0]
[1753111909985,0.06,197.26,197.25,48.60546599]
[1753111910183,0.06,197.26,197.25,53.67517448]
[1753111910387,0.06,197.26,197.25,54.37517448]
[1753111911290,0.06,197.29,197.25,32.74872889]
[1753111911492,0.06,197.32,197.28,63.51242687]
[1753111911493,1e-08,197.32,197.28,63.51242687]
[1753111911801,0.06,197.33,197.31,26.0]
[1753111911998,0.06,197.33,197.29,38.24128761]
[1753111911999,0.06,197.33,197.32,48.60501637]
[1753111912206,0.06,197.33,197.32,53.67292636]
[1753111912381,0.06,197.33,197.32,54.37292636]
[1753111913888,0.06,197.33,197.32,15.71292636]
[1753111914090,0.06,197.33,197.32,43.98905491]
[1753111914321,0.06,197.33,197.32,54.35292636]
[1753111914487,0.06,197.36,197.35,26.0]
[1753111914689,0.06,197.36,197.35,74.30387145]
[1753111914891,0.2,197.39,197.35,75.28479879]
[1753111915201,0.2,197.39,197.36,11.06387145]
[1753111916405,0.2,197.39,197.36,16.1307543]
[1753111918390,0.2,197.39,197.36,15.4307543]
[1753111918689,0.2,197.39,197.36,15.71161746]
[1753111918894,0.2,197.39,197.36,16.41161746]
[1753111919695,0.06,197.4,197.36,16.41161746]
[1753111919696,0.06,197.4,197.39,26.0]
[1753111919907,0.06,197.4,197.39,84.90841354]
[1753111920108,0.06,197.4,197.39,10.36387145]
[1753111920294,0.06,197.4,197.39,15.42998422]
[1753111920494,0.06,197.4,197.39,15.71065486]
[1753111920697,0.06,197.4,197.39,6.04678341]
[1753111920903,0.06,197.4,197.39,15.71065486]
[1753111921199,0.06,197.4,197.39,26.77452631]
[1753111921403,0.06,197.4,197.39,0.28067064]
[1753111921597,0.72,197.4,197.37,10.36387145]
[1753111921798,0.06,197.4,197.33,37.9]
[1753111921997,10.36387145,197.38,197.32,15.43178144]
[1753111922415,0.66,197.37,197.33,10.36387145]
[1753111922595,0.66,197.37,197.34,10.36387145]
[1753111922797,3.6412,197.4,197.36,10.36387145]
[1753111922994,3.6412,197.4,197.38,10.36387145]
[1753111923308,0.66,197.39,197.37,10.36387145]
[1753111923894,11.65716762,197.38,197.29,5.06868062]
[1753111924111,0.66,197.37,197.33,10.36387145]
[1753111924310,0.66,197.37,197.34,15.43111295]
[1753111924814,16.78468397,197.34,197.2,6.1913]
[1753111925120,27.14855542,197.29,197.23,10.36387145]
[1753111925424,0.66,197.28,197.23,10.36387145]
[1753111925628,27.80855542,197.27,197.21,10.36387145]
[1753111925923,27.14855542,197.25,197.18,5.07150826]
[1753111926101,1.29374569,197.24,197.19,10.36387145]
[1753111926422,0.66,197.23,197.2,15.43483448]
[1753111926729,17.41839753,197.25,197.17,5.07176548]
[1753111927017,0.66,197.24,197.21,10.36387145]
[1753111927611,11.65764927,197.23,197.15,37.88]
[1753111927816,16.78468397,197.17,197.14,0.03]
[1753111928002,16.78468397,197.18,197.14,0.03]
[1753111928404,0.66,197.16,197.14,0.03]
[1753111928923,0.66,197.15,197.14,0.03]
[1753111929099,0.63393853,197.18,197.14,0.03]
[1753111929302,0.66,197.15,197.14,0.03]
[1753111930221,28.44259041,197.15,197.14,0.03]
[1753111930599,33.51487039,197.15,197.14,0.03]
[1753111931232,33.51487039,197.15,197.1,0.03]
[1753111931233,16.78468397,197.14,197.1,0.03]
[1753111931546,10.36387145,197.11,197.1,0.03]
[1753111931714,10.99803511,197.11,197.1,0.03]
[1753111931915,11.65803511,197.11,197.1,0.03]
[1753111932727,16.78468397,197.1,197.07,51.505573]
[1753111932939,27.14855542,197.08,197.07,51.505573]
[1753111933228,27.80855542,197.08,197.07,51.505573]
[1753111933900,30.65555542,197.08,197.07,51.505573]
[1753111934301,30.65555542,197.08,197.07,48.408373]
[1753111934501,30.65555542,197.08,197.02,0.03]
[1753111934502,16.78468397,197.03,197.02,0.03]
[1753111934711,27.78297657,197.03,197.02,0.03]
[1753111934926,28.44297657,197.03,197.02,0.03]
[1753111935301,66.32297657,197.03,197.02,0.03]
[1753111936637,71.3983458,197.03,197.02,0.03]
[1753111938806,77.7117458,197.03,197.02,0.03]
[1753111940714,77.7117458,197.03,196.94,0.1]
[1753111940715,16.78468397,196.95,196.94,0.1]
[1753111940901,55.29936282,196.95,196.94,0.1]
[1753111941223,66.32323427,196.95,196.94,0.1]
[1753111942239,55.95936282,196.95,196.94,0.1]
[1753111942714,66.32323427,196.95,196.94,0.1]
[1753111943609,70.75579364,196.95,196.9,0.1]
[1753111943814,16.78468397,196.93,196.9,0.1]
[1753111944046,27.78329872,196.93,196.9,0.1]
[1753111944343,16.78468397,196.93,196.9,0.1]
[1753111944529,37.88,196.93,196.91,10.36387145]
[1753111944827,10.36387145,196.97,196.91,10.36387145]
[1753111944828,37.9,196.95,196.92,10.36387145]
[1753111945235,37.9,196.95,196.9,5.17862247]
[1753111945440,37.9,196.95,196.91,10.36387145]
[1753111945739,37.9,196.95,196.9,0.1]
[1753111945909,17.41939504,196.94,196.9,10.46387145]
[1753111946229,27.14855542,196.92,196.9,0.1]
[1753111946438,55.29945951,196.92,196.9,0.1]
[1753111946644,11.02387145,196.91,196.9,0.1]
[1753111946816,27.80855542,196.91,196.9,0.1]
[1753111948533,0.63471107,196.94,196.9,15.54246483]
[1753111948831,37.88,196.94,196.91,0.69]
[1753111949044,37.88,196.94,196.87,26.31379056]
[1753111949045,37.88,196.94,196.87,38.69826456]
[1753111949231,54.66468397,196.96,196.92,10.36387145]
[1753111949719,27.14855542,196.94,196.86,0.03]
[1753111950036,10.99861475,196.93,196.88,10.36387145]
[1753111950253,0.66,196.92,196.88,5.07923333]
[1753111950535,48.87861475,196.93,196.86,5.1095777]
[1753111950536,48.24387145,196.93,196.86,5.1095777]
[1753111950746,37.88,196.93,196.89,10.36387145]
[1753111950926,27.80855542,196.97,196.91,10.36387145]
[1753111951117,16.78468397,196.95,196.91,10.36387145]
[1753111951433,37.88,196.95,196.92,10.36387145]
[1753111951630,16.78468397,196.96,196.93,10.36387145]
[1753111951843,16.78468397,196.99,196.94,10.36387145]
[1753111952047,37.88,196.98,196.94,10.36387145]
[1753111952217,1.3346144,196.97,196.93,10.36387145]
[1753111952539,16.78468397,196.94,196.89,10.36387145]
[1753111952735,37.88,196.93,196.89,10.36387145]
[1753111952928,37.88,196.93,196.9,10.36387145]
[1753111953437,16.78468397,196.94,196.9,10.36387145]
[1753111953737,37.88,196.97,196.93,10.36387145]
[1753111953938,37.88,196.97,196.91,5.40841144]
[1753111954135,37.88,196.97,196.94,10.36387145]
[1753111954340,37.88,196.98,196.94,10.36387145]
[1753111954521,38.58,196.98,196.91,5.40841144]
[1753111954836,16.78468397,196.97,196.93,10.36387145]
[1753111955136,39.21458219,196.98,196.95,10.36387145]
[1753111955137,38.51458219,196.98,196.95,10.36387145]
[1753111955342,38.51458219,196.98,196.96,10.36387145]
[1753111955343,37.88,196.98,196.96,10.36387145]
[1753111955519,37.88,196.98,196.96,15.44103058]
[1753111955921,3.34468471,197.01,196.96,15.44103058]
[1753111955922,0.7,197.01,196.97,10.36387145]
[1753111956123,37.86,197.0,196.98,10.36387145]
[1753111956536,37.86,197.0,196.97,10.36387145]
[1753111956938,37.86,197.0,196.99,10.36387145]
[1753111957248,16.78468397,197.03,196.99,10.36387145]
[1753111957414,16.78468397,197.03,197.0,10.36387145]
[1753111957620,0.7,197.07,197.02,10.36387145]
[1753111957824,16.78468397,197.09,197.05,10.36387145]
[1753111958136,1.39419583,197.1,197.05,10.36387145]
[1753111958446,0.7,197.09,197.03,26.0]
[1753111958631,0.7,197.09,197.04,10.36387145]
[1753111958833,0.7,197.09,197.03,26.0]
[1753111958834,0.63426019,197.08,197.03,36.36387145]
[1753111959140,17.48468397,197.07,197.03,26.0]
[1753111959445,0.7,197.06,197.03,26.0]
[1753111959643,0.7,197.06,197.03,36.36387145]
[1753111959822,0.7,197.06,197.02,15.43939537]
[1753111960021,17.48468397,197.05,197.01,36.36387145]
[1753111960428,0.7,197.04,196.98,5.07665752]
[1753111960746,27.78297657,197.03,196.97,10.36387145]
[1753111961242,37.86,197.02,196.97,10.36387145]
[1753111961543,0.7,197.01,196.97,36.36387145]
[1753111961841,0.7,197.01,196.97,41.4406347]
[1753111962276,0.7,197.0,196.97,26.0]
[1753111962447,0.7,197.0,196.94,5.07768863]
[1753111962623,0.63454997,196.99,196.93,8.05998864]
[1753111962938,10.99842142,196.99,196.93,15.44176009]
[1753111963136,37.84,196.98,196.93,5.07788864]
[1753111963340,37.84,196.98,196.89,12.69686702]
[1753111963341,18.11929837,196.97,196.92,10.36387145]
[1753111963528,0.7,196.96,196.92,10.36387145]
[1753111963847,0.6346144,196.97,196.93,10.36387145]
[1753111964040,0.7,197.0,196.95,10.36387145]
[1753111964244,37.84,197.01,196.97,10.36387145]
[1753111964431,28.48307318,197.0,196.94,10.36387145]
[1753111964623,27.84855542,197.0,196.94,10.36387145]
[1753111965145,17.48468397,197.0,196.96,10.36387145]
[1753111965650,17.48468397,197.0,196.96,15.44104397]
[1753111965947,17.48468397,197.0,196.95,15.44124346]
[1753111966149,27.14855542,197.0,196.95,15.44124346]
[1753111966451,0.7,196.99,196.95,15.44124346]
[1753111966670,27.14855542,197.0,196.95,15.44124346]
[1753111966671,16.78468397,197.0,196.96,10.36387145]
[1753111967028,16.78468397,197.0,196.95,5.07737201]
[1753111967231,17.48468397,197.0,196.96,10.36387145]
[1753111967662,16.78468397,197.0,196.96,15.44094041]
[1753111968033,17.54468397,197.0,196.96,15.44094041]
[1753111968353,16.84468397,197.0,196.96,15.44094041]
[1753111968731,17.54468397,197.0,196.96,15.44094041]
[1753111968926,0.7,196.99,196.95,15.44124909]
[1753111970149,0.7,196.99,196.95,10.36387145]
[1753111970657,0.7,196.99,196.93,5.07792073]
[1753111970974,27.14855542,196.96,196.89,26.0]
[1753111971259,37.82,196.95,196.91,10.36387145]
[1753111971640,16.78468397,196.94,196.91,10.36387145]
[1753111972232,10.36387145,196.96,196.93,10.36387145]
[1753111972233,37.82,196.96,196.93,10.36387145]
[1753111973033,37.82,196.96,196.91,5.07844644]
[1753111973251,38.52,196.96,196.92,10.36387145]
[1753111974144,38.52,196.96,196.92,15.44205647]
[1753111974349,37.82,196.96,196.93,26.0]
[1753111974732,38.52,196.96,196.93,26.0]
[1753111975550,38.52,196.96,196.92,15.44207053]
[1753111975933,38.52,196.96,196.92,5.07819908]
[1753111976134,38.52,196.96,196.92,10.36387145]
[1753111976349,38.52,196.96,196.93,10.36387145]
[1753111976533,38.52,196.96,196.91,26.0]
[1753111976534,0.7,196.95,196.91,26.0]
[1753111976743,0.7,196.95,196.88,8.09222541]
[1753111976744,17.48468397,196.94,196.88,8.09222541]
[1753111976942,37.82,196.93,196.9,10.36387145]
[1753111977352,17.48468397,196.94,196.91,15.44230457]
[1753111977353,37.8,196.94,196.91,15.44230457]
[1753111977558,37.8,196.94,196.92,10.36387145]
[1753111977869,54.58468397,196.95,196.92,10.36387145]
[1753111978034,54.58468397,196.95,196.88,29.3432]
[1753111978235,54.58468397,196.95,196.92,10.36387145]
[1753111978749,55.28468397,196.95,196.92,10.36387145]
[1753111979272,55.28468397,196.95,196.89,5.0789781]
[1753111979273,1.33471107,196.94,196.89,5.0789781]
[1753111979565,0.7,196.94,196.91,10.36387145]
[1753111979760,54.58468397,196.95,196.89,5.0789781]
[1753111979936,54.58468397,196.95,196.88,29.0132]
[1753111979937,16.78468397,196.92,196.88,36.36387145]
[1753111980135,54.58468397,196.92,196.88,26.0]
[1753111980338,16.78468397,196.97,196.91,36.36387145]
[1753111980648,0.7,196.98,196.91,36.36387145]
[1753111980649,0.69451776,197.0,196.96,10.36387145]
[1753111980846,0.06,197.0,196.99,10.36387145]
[1753111981047,0.06,197.0,196.99,10.69387145]
[1753111981573,0.06,197.04,197.0,17.76649745]
[1753111981741,0.06,197.04,197.03,10.36387145]
[1753111981939,0.06,197.04,197.03,20.7277429]
[1753111982271,0.06,197.04,197.03,23.9994429]
[1753111982467,0.06,197.1,197.06,26.0]
[1753111982647,0.06,197.1,197.07,10.36387145]
[1753111984262,16.78468397,197.07,196.99,5.07639981]
[1753111984458,27.14855542,197.03,196.97,10.36387145]
[1753111984762,16.78468397,197.02,197.0,10.36387145]
[1753111985352,1.33448555,197.01,196.94,5.40768863]
[1753111985550,16.78468397,197.04,197.0,10.36387145]
[1753111985551,0.63445335,197.02,197.0,10.36387145]
[1753111985753,37.78,197.04,196.98,5.0766114]
[1753111985954,37.78,197.04,197.02,10.36387145]
[1753111986155,38.48,197.04,197.01,10.36387145]
[1753111986356,0.7,197.04,197.01,10.36387145]
[1753111986553,38.41432457,197.06,197.02,10.36387145]
[1753111986757,39.11432457,197.06,197.02,10.36387145]
[1753111987254,0.7,197.05,197.02,10.36387145]
[1753111987471,0.7,197.05,197.03,10.36387145]
[1753111987767,16.77345698,197.04,196.98,10.36387145]
[1753111987957,10.36387145,197.02,196.97,10.36387145]
[1753111988161,0.63445335,197.02,196.97,10.36387145]
[1753111988669,0.7,197.01,196.96,26.0]
[1753111988869,0.7,197.0,196.97,10.36387145]
[1753111989079,0.7,197.0,196.93,15.48776712]
[1753111989080,1.33454997,196.99,196.93,2.7931]
[1753111989249,0.7,196.98,196.93,10.36387145]
[1753111989450,0.7,196.98,196.95,10.36387145]
[1753111989759,0.7,196.98,196.94,10.36387145]
[1753111990075,0.63454997,196.99,196.89,0.33]
[1753111990279,0.63454997,196.99,196.94,10.36387145]
[1753111990446,1.33454997,196.99,196.94,15.44139028]
[1753111990652,1.33454997,196.99,196.94,5.07751883]
[1753111990859,0.7,196.98,196.94,10.36387145]
[1753111991582,0.7,196.97,196.94,10.36387145]
[1753111992079,1.33464662,196.96,196.91,41.44230163]
[1753111992299,0.7,196.95,196.91,41.44230163]
[1753111992479,0.63464662,196.96,196.91,36.36387145]
[1753111992781,11.69858252,196.94,196.88,15.44285379]
[1753111993072,10.99851807,196.96,196.91,10.36387145]
[1753111993244,1.33464662,196.96,196.91,10.36387145]
[1753111993449,10.36387145,196.93,196.87,0.03]
[1753111993667,11.6985503,196.95,196.89,10.36387145]
[1753111994071,11.6985503,196.95,196.9,10.36387145]
[1753111994072,1.33467885,196.95,196.9,10.36387145]
[1753111994265,0.7,196.94,196.89,5.0788561]
[1753111994469,0.7,196.93,196.9,10.36387145]
[1753111994670,0.63467885,196.95,196.9,10.36387145]
[1753111994856,0.7,196.94,196.9,10.36387145]
[1753111995051,0.7,196.94,196.91,10.36387145]
[1753111995250,0.63464662,196.96,196.92,10.36387145]
[1753111995758,1.33464662,196.96,196.92,10.36387145]
[1753111995962,1.33464662,196.96,196.91,10.36387145]
[1753111996152,1.33464662,196.96,196.92,10.36387145]
[1753111996780,37.76,196.97,196.94,10.36387145]
[1753111997086,1.33464662,196.96,196.92,10.36387145]
[1753111997283,0.7,196.95,196.89,31.07875284]
[1753111997582,0.63464662,196.96,196.89,31.07875284]
[1753111997583,0.63464662,196.96,196.92,10.36387145]
[1753111997786,38.3946144,196.97,196.93,10.36387145]
[1753111997957,38.46,196.97,196.93,10.36387145]
[1753111998781,38.46,196.97,196.93,15.44179374]
[1753111999164,0.63458219,196.98,196.95,10.36387145]
[1753111999354,1.33451776,197.0,196.97,10.36387145]
[1753111999554,39.07451776,197.0,196.94,0.33]
[1753111999794,39.07451776,197.0,196.97,10.36387145]
[1753111999974,0.7,196.99,196.96,10.36387145]
[1753112000162,1.33458219,196.98,196.93,10.36387145]
[1753112000362,11.06387145,196.97,196.9,5.07872016]
[1753112000554,1.33464662,196.96,196.91,10.36387145]
[1753112000756,0.7,196.95,196.91,10.36387145]
[1753112001172,0.7,196.94,196.9,15.44259161]
[1753112001485,1.3347433,196.93,196.88,10.36387145]
[1753112001783,0.7,196.92,196.88,10.36387145]
[1753112001989,1.33480778,196.91,196.88,10.36387145]
[1753112002158,0.7,196.9,196.87,10.39387145]
[1753112002557,0.7,196.9,196.87,0.03]
[1753112002754,0.63471107,196.94,196.87,5.10947326]
[1753112002959,0.63471107,196.94,196.9,10.36387145]
[1753112003264,0.6347433,196.93,196.9,36.36387145]
[1753112003569,0.7,196.92,196.87,5.10947326]
[1753112003771,0.7,196.91,196.88,10.36387145]
[1753112004499,0.63477554,196.92,196.87,5.10947326]
[1753112004500,1.33484002,196.9,196.87,0.03]